Cogmind - Beta 11 @@@ ROGUE MODE // 2022.03.19 @ 00:20:31 Player: Shin Result: Destroyed by D-53 Grenadier with Mini Grenade Launcher Performance ------------- Evolutions (0) 0 Regions Visited (4) 800 Robots Destroyed (14) 70 Value Destroyed (319) 319 Prototype IDs (2) 40 Alien Tech Used (0) 0 Bonus (0) 0 TOTAL SCORE: 1229 Bonus ------- None Cogmind --------- Core Integrity 0/250 Matter 275/300 Energy 94/100 System Corruption 0% Temperature Cool (0) Movement Rolling (180) Ox6 Location -9/Mines Parts ------- > --- POWER (1) -------- (None) > --- PROPULSION (2) --- Armored Wheel > --- UTILITY (2) ------ Huge Storage Unit Structural Scanner > --- WEAPON (2) ------- (None) > --- INVENTORY (25) --- Light Ion Engine Light Fission Core Light Fission Core Light Fission Core Wheel Large Battery (200) High-capacity Matter Pod (200) Signal Interpreter Improved Terrain Scanner Improved Terrain Scanner Light Armor Plating Medium Laser Medium Laser Medium Laser Grenade Launcher Peak State ------------ > --- POWER ------------ Light Ion Engine > --- PROPULSION ------- Aluminum Leg Armored Wheel > --- UTILITY ---------- Huge Storage Unit Structural Scanner > --- WEAPON ----------- EM Pulse Gun Mining Laser > --- INVENTORY -------- Light Ion Engine Light Ion Engine Light Fission Core Light Fission Core Wheel Wheel Armored Wheel Large Battery High-capacity Matter Pod Signal Interpreter Improved Terrain Scanner Improved Terrain Scanner Light Armor Plating Medium Laser Medium Laser Medium Laser Grenade Launcher [Rating: 11] Favorites ----------- Power Light Ion Engine Engine Light Ion Engine Propulsion Aluminum Leg Leg Aluminum Leg Wheel Armored Wheel Utility Structural Scanner Device Structural Scanner Storage Huge Storage Unit Weapon Medium Laser Energy Gun Medium Laser Ballistic Gun Assault Rifle Special Weapon Mining Laser Build | -11 -10 -10 -10 -9 ------- Run | Scr Mat Min Exi Min Slots Evolved . | . . . . . Power . | . . . . . Propulsion . | . . . . . Utility . | . . . . . Weapon . | . . . . . Parts Attached 18 | 1 3 8 3 3 Power 3 | . 1 1 . 1 Engine 3 | . 1 1 . 1 Core . | . . . . . Reactor . | . . . . . Propulsion 7 | . 1 4 . 2 Treads . | . . . . . Leg 3 | . 1 2 . . Wheel 4 | . . 2 . 2 Hover . | . . . . . Flight . | . . . . . Utility 3 | 1 . 2 . . Device 2 | 1 . 1 . . Storage 1 | . . 1 . . Processor . | . . . . . Hackware . | . . . . . Protection . | . . . . . Artifact . | . . . . . Weapon 5 | . 1 1 3 . Energy Gun 3 | . 1 1 1 . Energy Cannon . | . . . . . Ballistic Gun . | . . . . . Ballistic Cannon . | . . . . . Launcher . | . . . . . Special Weapon 2 | . . . 2 . Impact Weapon . | . . . . . Slashing Weapon . | . . . . . Piercing Weapon . | . . . . . Special Melee Weapon . | . . . . . Unidentified Prototypes . | . . . . . Parts Lost 11 | . 1 3 . 7 Power 3 | . . 1 . 2 Propulsion 5 | . 1 1 . 3 Utility . | . . . . . Weapon 3 | . . 1 . 2 Highest Loss Streak 7 | . 1 3 . 7 To Critical Strikes . | . . . . . Average Slot Usage (%) 99 | . 99 99 100 92 Engine 14 | . 14 14 14 14 Leg 17 | . 27 21 14 10 Wheel 10 | . . 6 14 14 Device 14 | . 14 14 14 14 Storage 14 | . 14 14 14 14 Energy Gun 22 | . 14 25 21 14 Ballistic Gun 1 | . 14 2 . . Special Weapon 4 | . . . 6 10 Naked Turns . | . . . . . Heaviest Build 88 | 12 15 88 88 87 Greatest Support 20 | 20 20 20 12 12 Greatest Overweight (x) 7 | . 1 7 7 7 Average Overweight (x) 4 | . . 2 7 6 Largest Inventory Capacity 25 | 8 8 25 25 25 Average Capacity 20 | 8 8 14 25 25 Most Carried 18 | 7 8 16 18 18 Average Carried 12 | 5 7 9 15 17 Final Capacity 25 | 8 8 25 25 25 Final Carried 18 | 6 8 16 18 15 Class Distribution -------------------- 100% | Mutant Dominant Class ---------------- Mutant | -10/Materials Mutant | -10/Mines Mutant | -10/Exiles Mutant | -9/Mines Resources | -11 -10 -10 -10 -9 ----------- Run | Scr Mat Min Exi Min Matter Collected 530 | 218 89 223 . . Remotely . | . . . . . Salvage Created 555 | 88 215 252 . . Parts 38 | 7 15 16 . . Haulers Intercepted . | . . . . . Recyclers Shooed 3 | . 2 1 . . Parts Field Recycled . | . . . . . Retrieved Matter . | . . . . . Parts Self-Destructed . | . . . . . Prevented . | . . . . . Kills | -11 -10 -10 -10 -9 ------- Run | Scr Mat Min Exi Min Combat Hostiles Destroyed 8 | . 5 3 . . Guns 8 | . 5 3 . . Classes Destroyed 4 | 2 1 1 . . Worker 1 | . . 1 . . Tunneler 3 | 1 . 2 . . Recycler 2 | 1 . 1 . . Grunt 8 | . 5 3 . . Best Kill Streak 3 | 2 3 2 . . Combat Bots Only 3 | . 3 2 . . Max Kills in Single Turn 1 | 1 1 1 . . Gunslinging . | . . . . . Exploded . | . . . . . Melee . | . . . . . Uniques/NPCs Destroyed . | . . . . . Combat | -11 -10 -10 -10 -9 -------- Run | Scr Mat Min Exi Min Damage Taken 1333 | . 295 599 . 439 Core 252 | . 45 130 . 77 Absorbed by Shields . | . . . . . Core Remaining (%) 100 | 100 . . . . Volleys Fired 122 | 6 21 32 60 3 Largest 2 | 2 2 2 2 2 Hottest 140 | 60 70 100 100 140 Shots Fired 195 | 12 42 64 73 4 Gun 147 | 12 42 64 26 3 Cannon . | . . . . . Launcher . | . . . . . Special 48 | . . . 47 1 Kinetic 46 | 6 21 19 . . Thermal 133 | 6 21 45 60 1 Explosive . | . . . . . Electromagnetic 16 | . . . 13 3 Robot Hit Streak 12 | 10 11 12 . 8 Robot Miss Streak 3 | 2 3 3 . 1 Penetration Max . | . . . . . Secondary Targets 1 | . 1 . . . Max Gunslinging Chain 1 | . 1 . . . Shots Hit Robots 83 | 10 27 44 . 2 Core Hits 30 | 3 11 15 . 1 Critical Kills . | . . . . . Critical Parts Destroyed . | . . . . . Critical Strikes 2 | . . 2 . . Burn 2 | . . 2 . . Melee Attacks . | . . . . . Impact . | . . . . . Slashing . | . . . . . Piercing . | . . . . . Sneak Attacks . | . . . . . Combat Hostiles . | . . . . . Follow-up Attacks . | . . . . . Damage Inflicted 1061 | 124 350 561 . 26 Guns 1061 | 124 350 561 . 26 Cannons . | . . . . . Explosions . | . . . . . Melee . | . . . . . Ramming . | . . . . . Kinetic 394 | 69 167 158 . . Thermal 641 | 55 183 403 . . Explosive . | . . . . . Electromagnetic 26 | . . . . 26 Impact . | . . . . . Slashing . | . . . . . Piercing . | . . . . . Highest Corruption . | . . . . . Average Corruption . | . . . . . Corruption Purged . | . . . . . Corruption Blocked . | . . . . . Overload Shots . | . . . . . Overflow Damage . | . . . . . Projectiles . | . . . . . Explosions . | . . . . . Melee . | . . . . . Knockbacks . | . . . . . Impact . | . . . . . Kinetic . | . . . . . Secondary . | . . . . . Self-Inflicted Damage . | . . . . . Shots . | . . . . . Rammed . | . . . . . Targets Rammed . | . . . . . Kicked . | . . . . . Crushed . | . . . . . Highest Temperature 243 | . 123 243 220 35 Average Temperature 63 | . 40 107 46 21 Received Heat Transfer 516 | . 162 354 . . Siege Activations . | . . . . . Robots Corrupted . | . . . . . Combat Hostiles . | . . . . . Parts Fried . | . . . . . Impact Corruptions . | . . . . . Robots Melted . | . . . . . Combat Hostiles . | . . . . . Parts Melted 1 | . . 1 . . Heat Transferred 1928 | 125 471 1332 . . Parts Sabotaged . | . . . . . Parts Stolen . | . . . . . Parts Stripped . | . . . . . Power Chain Reactions . | . . . . . Missiles Intercepted . | . . . . . Alert | -11 -10 -10 -10 -9 ------- Run | Scr Mat Min Exi Min Peak Influence 174 | 10 174 117 . . Initial 67 | . 6 67 . . Average 47 | 4 105 36 . . Maximum Alert Level . | . . . . . Low Security (%) 100 | 100 100 100 . 100 Level 1 . | . . . . . Level 2 . | . . . . . Level 3 . | . . . . . Level 4 . | . . . . . Level 5 . | . . . . . High Security . | . . . . . Max Security . | . . . . . Squads Dispatched 2 | . 2 . . . Investigation 1 | . 1 . . . Extermination . | . . . . . Reinforcement 1 | . 1 . . . Assault . | . . . . . Garrison . | . . . . . Intercept . | . . . . . Searches Triggered . | . . . . . Construction Impeded . | . . . . . Haulers Reinforced . | . . . . . Active Scanning Responses . | . . . . . Cargo Convoy Interrupts . | . . . . . Stealth | -11 -10 -10 -10 -9 --------- Run | Scr Mat Min Exi Min Distress Signals 1 | . 1 . . . Communications Jammed . | . . . . . Distress Signals . | . . . . . Times Spotted 26 | . 10 4 . 12 Peak Tracking Total 9 | . 4 2 . 9 Tactical Retreats 1 | . 1 . . . Traps | -11 -10 -10 -10 -9 ------- Run | Scr Mat Min Exi Min Traps Triggered . | . . . . . Indirectly . | . . . . . Trap Hack Attempts . | . . . . . Triggered . | . . . . . Disarmed . | . . . . . Reprogrammed . | . . . . . Reused . | . . . . . Traps Extracted . | . . . . . Installed . | . . . . . Triggered . | . . . . . Machines | -11 -10 -10 -10 -9 ---------- Run | Scr Mat Min Exi Min Machines Disabled 1 | . . . 1 . Max in Single Turn 1 | . . . 1 . Machines Sabotaged . | . . . . . Garrisons Compromised . | . . . . . Overloaded Fab Kills . | . . . . . Hacking | -11 -10 -10 -10 -9 --------- Run | Scr Mat Min Exi Min Machines Accessed 6 | . 2 . 4 . Terminals 2 | . 2 . . . Fabricators . | . . . . . Repair Stations . | . . . . . Recycling Units . | . . . . . Scanalyzers . | . . . . . Garrison Access . | . . . . . Total Hacks 12 | . 8 . 4 . Successful 9 | . 5 . 4 . Failed 3 | . 3 . . . Catastrophic 1 | . 1 . . . Database Lockouts . | . . . . . Manual 6 | . 3 . 3 . Terminals 8 | . 8 . . . Fabricators . | . . . . . Repair Stations . | . . . . . Recycling Units . | . . . . . Scanalyzers . | . . . . . Garrison Access . | . . . . . Terminal Hacks 8 | . 4 . 4 . Record 4 | . . . 4 . Robot Analysis 1 | . 1 . . . Prototype ID Bank 1 | . 1 . . . Hauler Manifests 1 | . 1 . . . Zone Layout 1 | . 1 . . . Fabricator Hacks . | . . . . . Repair Station Hacks . | . . . . . Recycling Unit Hacks . | . . . . . Scanalyzer . | . . . . . Garrison Access Hacks . | . . . . . Unauthorized Hacks 1 | . 1 . . . Terminals 1 | . 1 . . . Botnet 1 | . 1 . . . Fabricators . | . . . . . Repair Stations . | . . . . . Recycling Units . | . . . . . Scanalyzers . | . . . . . Garrison Access . | . . . . . Data Cores Recovered . | . . . . . Used . | . . . . . Hacking Detections 2 | . 2 . . . Full Trace Events 1 | . 1 . . . Feedback Events . | . . . . . Feedback Blocked . | . . . . . Robot Schematics Acquired . | . . . . . Robots Built . | . . . . . Authchips . | . . . . . Time . | . . . . . Total Robot Build Rating . | . . . . . Part Schematics Acquired . | . . . . . Parts Built . | . . . . . Authchips . | . . . . . Time . | . . . . . Total Part Build Rating . | . . . . . Parts Repaired . | . . . . . Time . | . . . . . Parts Recycled . | . . . . . Recycled Matter . | . . . . . Retrieved Matter . | . . . . . Retrieved Components . | . . . . . Parts Scanalyzed . | . . . . . Part Schematics Acquired . | . . . . . Parts Damaged . | . . . . . Bothacking | -11 -10 -10 -10 -9 ------------ Run | Scr Mat Min Exi Min Used RIF Installer . | . . . . . Robots Hacked . | . . . . . Non-combat . | . . . . . Combat . | . . . . . Robot Hacks Applied . | . . . . . Relay Couplers Released . | . . . . . Fabnet Peak Effective % . | . . . . . Robots Rewired . | . . . . . Allies Hacked . | . . . . . Hacks Repelled . | . . . . . Allies | -11 -10 -10 -10 -9 -------- Run | Scr Mat Min Exi Min Total Allies . | . . . . . Largest Group . | . . . . . Highest-Rated Group . | . . . . . Highest-Rated Ally . | . . . . . Total Orders . | . . . . . Ally Attacks . | . . . . . Total Damage . | . . . . . Kills . | . . . . . Allies Corrupted . | . . . . . Allies Melted . | . . . . . Intel | -11 -10 -10 -10 -9 ------- Run | Scr Mat Min Exi Min Robot Analysis Total 1 | . 1 . . . Derelict Logs Recovered 1 | . . 1 . . Drone Launches . | . . . . . Drone Recoveries . | . . . . . Exploration | -11 -10 -10 -10 -9 ------------- Run | Scr Mat Min Exi Min Turns Passed 3703 | 67 295 1118 2180 43 Spaces Moved 1851 | 37 161 643 994 16 Core . | . . . . . Treads . | . . . . . Legs 621 | 37 161 423 . . Wheels 1230 | . . 220 994 16 Hover . | . . . . . Flight . | . . . . . Fastest Speed 105 | 120 120 105 195 180 Average Speed 170 | 120 120 147 195 194 Slowest Speed 400 | 120 190 400 195 195 Overloaded Moves . | . . . . . Propulsion Burnouts . | . . . . . Robots Hopped . | . . . . . Cave-ins Triggered . | . . . . . Exploration Rate (%) 47 | 4 32 94 98 10 Regions Visited 4 Branch Regions 3 Pre-discovered Areas 1 | . . 1 . . Known Exits Taken . | . . . . . Unknown Exits Taken 4 | 1 1 1 1 . Scrap Searched 1 | . . 1 . . Spaces Dug 4 | . . . 4 . Terrain Destroyed 43 | . . . 43 . Melee . | . . . . . Projectile 11 | . . . 11 . AOE 32 | . . . 32 . Terrain Rammed . | . . . . . Walls Destroyed . | . . . . . Machines Disabled . | . . . . . Actions | -11 -10 -10 -10 -9 --------- Run | Scr Mat Min Exi Min Total 2110 | 48 222 749 1069 22 Wait 85 | . 25 53 7 . Move 1847 | 36 160 642 993 16 Hop . | . . . . . Pick Up 26 | 3 7 12 4 . Fast Attach 1 | . 1 . . . Attach 8 | 1 1 3 . 3 Detach . | . . . . . Swap 9 | . 1 5 3 . Drop 12 | 2 6 2 2 . Fire 122 | 6 21 32 60 3 Melee . | . . . . . Ram . | . . . . . Kick . | . . . . . Crush . | . . . . . Escape Stasis . | . . . . . Rewire . | . . . . . Trap . | . . . . . Miscellaneous . | . . . . . Route ------- -11/Scrapyard -10/Materials -10/Mines (discovered 3 exits: [*Mat x2] / *Exi) -10/Exiles (discovered 2 exits: [*Min x2]) -9/Mines (discovered 1 exit: [*Mat]) History --------- Turn | Location | Event 1 | -11/Scrapyard | Discovered new exit (range 2) 68 | -11/Scrapyard | Entered Materials 302 | -10/Materials | Build established: Mutant 318 | -10/Materials | Discovered new exit (range 14) 363 | -10/Materials | Entered Mines 364 | -10/Mines | Learned location of Storage (-7) 379 | -10/Mines | Discovered new exit (range 11) 431 | -10/Mines | Core integrity fell below 50% 574 | -10/Mines | Lost 3 parts (1p1n1w) 682 | -10/Mines | Learned Materials garrison access intel 685 | -10/Mines | YI-UF0 nonchalantly dropped a Grenade Launcher on the ground 1125 | -10/Mines | Discovered new exit (range 10) 1473 | -10/Mines | Deemed a non-threat by the Exiles lab entrance 1473 | -10/Mines | Discovered new exit (range 5) 1481 | -10/Mines | Entered Exiles 1481 | -10/Exiles | Found Exiles lab abandoned 2072 | -10/Exiles | Discovered new exit (range 10) 3414 | -10/Exiles | Discovered new exit (range 14) 3661 | -10/Exiles | Entered Mines 3680 | -9/Mines | Assembled infested the area 3694 | -9/Mines | Core integrity fell below 20% 3702 | -9/Mines | Discovered new exit (range 11) 3704 | -9/Mines | Destroyed by D-53 Grenadier with Mini Grenade Launcher Last Messages --------------- 03695_ Lgt. Ion Engine destroyed. 03695_ as-11186 destroyed. 03697_ U-05 Engineer lays Concrete. 03697_ as-37874 destroyed. 03697_ as-92764 destroyed. 03697_ as-04447 destroyed. 03697_ Aluminum Leg destroyed. 03697_ U-05 Engineer destroyed. 03698_ U-05 Engineer builds a Wall. 03700_ The unstable cave ceiling collapses. 03700_ as-02980 destroyed. 03700_ EM Pulse Gun destroyed. 03700_ as-35864 destroyed. 03702_ as-30316 destroyed. 03702_ as-18975 destroyed. 03702_ Arm. Wheel destroyed. 03702_ EXIT=FOUND 03702_ U-05 Engineer destroyed. 03704_ Wheel destroyed. 03704_ Lgt. Ion Engine destroyed. Map ----- +----------------------------------------------------+ | ????????????????????????????????????????????????? | | ????????????????????????????????????????????????? | | ????????????????????????????????????????????????? | | ????????????????????????????????????????????????? | | ????????????????????????????????????????????????? | | ????????????????????????????????????????????????? | | ????????????????????????????????????????????????? | | ????????????????????????????????????????????????? | | ????????????????????????????????????????????????? | | ????????????????????????????????????????????????? | | ????????????????????????????????????????????????? | | ????????????????????????????????????????????????? | | ????????????????????????????????????????????????? | | ????????????????????????????????????????????????? | | ????????????????????????????????????????????????? | | ??????????????????????????? ##??????????????????? | | ??????????????????????????? ##??????????????????? | | ????????????????####??????? ##??????????????????? | | ????????????????####?? #### ##??????????????????? | | ????????????????## #### ##??????????????????? | | ?????????????????? ##### ##??????????????????? | | ?????????????????? ### # # ####?????????????????? | | ???????????????### ## ####????????????????? | | ????????? k< ## # ######?????????????? | | ????????????? #####?????????????? | | ?????????????????## # @ ##?????????????? | | ?????????????????## # ###????????????? | | ??????????????##### # ! ####????????????? | | ??????????????##### % = dd % #####??????????? | | ??????????????## ##= # ##???????? | | ??????????###### ###### ##???????? | | ??????????###### ####### ### ???????? | | ??????????## ##?##### ####???????? | | ??????????## ##??####### ##?????????? | | ??????????## ##????##### #??????????? | | ??????????## ##????????## ##??????????? | | ??????????## ##?????????## ??????????? | | ??????????##########?????????## ????????? | | ??????????##########???????????? ###????????? | | ??????????????????????????????????? ####????????? | | ????????????????????????????????????????????????? | | ????????????????????????????????????????????????? | | ????????????????????????????????????????????????? | | ????????????????????????????????????????????????? | | ????????????????????????????????????????????????? | | | | | | | | | | | +----------------------------------------------------+ Best States ------------- Heat Dissipation 25 Energy Generation 10 Energy Capacity 250 Matter Stores 300 Matter Capacity 300 Sight Range 16 Terrain Scan Range 16 Terrain Scan Density 10 Evasion (%) 55 Item Schematics ----------------- None Robot Schematics ------------------ None Fabricated ------------ Nothing Alien Tech Used ----------------- None Achievements -------------- None Challenges ------------ None Game ------ Seed DrainedOpticalWeb Manual? 0 Play Time 00:26:36 Cumulative 53.0 hours Start 2022.03.18 @ 23:45:55 End 2022.03.19 @ 00:20:31 Sessions 1 Manual Loads 0 Difficulty Rogue Special Mode None Game No. 41 Rogue 41 Adventurer 0 Explorer 0 Win Type - Total 0 Types 0/0/0/0/0/0/0/0/0 Lore% 39 Gallery% 46 Achievement% 31 Wizard Run 0 Options --------- ASCII 0 Keyboard 0 Movement Mouse Keybinds 1 Fullscreen 1 Font 18/TerminusBold Map View 76x50 Tactical HUD 1 Map Filters NONE Filters NONE Steam 1 RUN: f9e15c72-b34d-4d8d-aa81-d8bfd68b137b